[Event "21th Rochefort Chess Festival - Masters"]
[Site "Rochefort, France"]
[Date "2023.02.12"]
[Round "2.2"]
[White "Harsha Bharathakoti"]
[Black "Joly, Julien"]
[Result "1-0"]
[TimeControl "1h30 + [30'']"]
[WhiteElo "2599"]
[BlackElo "2259"]

1. d4 {[%clk 01:21:31]} {[%emt 00:09:19]} d6 {[%clk 01:30:44]} {[%emt
00:00:25]} 2. e4 {[%clk 01:17:40]} {[%emt 00:04:20]} Nf6 {[%clk 01:30:56]}
{[%emt 00:00:19]} 3. Nc3 {[%clk 01:18:02]} {[%emt 00:00:07]} Nbd7 {[%clk
01:31:24]} {[%emt 00:00:03]} 4. Nf3 {[%clk 01:17:54]} {[%emt 00:00:37]} e5
{[%clk 01:31:49]} {[%emt 00:00:05]} 5. Rg1 {[%clk 01:12:25]} {[%emt 00:05:59]}
c6 {[%clk 01:31:48]} {[%emt 00:00:31]} 6. a3 {[%clk 01:03:01]} {[%emt
00:09:54]} Be7 {[%clk 01:25:23]} {[%emt 00:06:55]} 7. g4 {[%clk 01:02:46]}
{[%emt 00:00:45]} h6 {[%clk 01:25:00]} {[%emt 00:00:54]} 8. Be3 {[%clk
00:45:10]} {[%emt 00:18:05]} Qc7 {[%clk 01:19:13]} {[%emt 00:06:17]} 9. h4
{[%clk 00:42:53]} {[%emt 00:02:47]} exd4 {[%clk 01:13:44]} {[%emt 00:05:59]} 10.
Nxd4 {[%clk 00:41:45]} {[%emt 00:01:37]} Ne5 {[%clk 01:12:14]} {[%emt
00:02:00]} 11. Be2 {[%clk 00:36:17]} {[%emt 00:05:59]} Qd7 {[%clk 00:48:54]}
{[%emt 00:23:50]} 12. Nf5 {[%clk 00:28:25]} {[%emt 00:08:22]} g6 {[%clk
00:47:47]} {[%emt 00:01:37]} 13. Nxe7 {[%clk 00:27:29]} {[%emt 00:01:26]} Qxe7
{[%clk 00:45:41]} {[%emt 00:02:36]} 14. g5 {[%clk 00:23:35]} {[%emt 00:04:24]}
hxg5 {[%clk 00:44:35]} {[%emt 00:01:36]} 15. Bxg5 {[%clk 00:20:21]} {[%emt
00:03:44]} Ned7 {[%clk 00:25:52]} {[%emt 00:19:13]} 16. Qd2 {[%clk 00:11:58]}
{[%emt 00:08:53]} Kd8 {[%clk 00:22:28]} {[%emt 00:03:55]} 17. f4 {[%clk
00:10:00]} {[%emt 00:02:28]} Kc7 {[%clk 00:16:35]} {[%emt 00:06:24]} 18. O-O-O
{[%clk 00:09:03]} {[%emt 00:01:26]} Qf8 {[%clk 00:07:22]} {[%emt 00:09:43]} 19.
e5 {[%clk 00:08:02]} {[%emt 00:01:31]} Ne8 {[%clk 00:07:13]} {[%emt 00:00:40]}
20. exd6+ {[%clk 00:06:55]} {[%emt 00:01:36]} Qxd6 {[%clk 00:02:38]} {[%emt
00:05:05]} 21. Nb5+ {[%clk 00:05:10]} {[%emt 00:02:15]} cxb5 {[%clk 00:03:07]}
{[%emt 00:00:02]} 22. Qc3+ {[%clk 00:05:35]} {[%emt 00:00:05]} Qc6 {[%clk
00:02:29]} {[%emt 00:01:08]} 23. Qxh8 {[%clk 00:06:00]} {[%emt 00:00:05]} Nc5
{[%clk 00:00:44]} {[%emt 00:02:15]} 24. Bd8+ {[%clk 00:05:56]} {[%emt
00:00:33]} Kb8 {[%clk 00:00:59]} {[%emt 00:00:15]} 25. Qe5+ {[%clk 00:04:47]}
{[%emt 00:01:39]} Nc7 {[%clk 00:01:23]} {[%emt 00:00:06]} 26. Rd6 {[%clk
00:04:48]} {[%emt 00:00:30]} Nb3+ {[%clk 00:01:48]} {[%emt 00:00:06]} 27. Kb1
{[%clk 00:04:57]} {[%emt 00:00:20]} Qc5 {[%clk 00:02:13]} {[%emt 00:00:05]} 28.
Bxc7+ {[%clk 00:04:41]} {[%emt 00:00:46]} Qxc7 {[%clk 00:02:35]} {[%emt
00:00:08]} 29. cxb3 {[%clk 00:05:03]} {[%emt 00:00:08]} Bf5+ {[%clk 00:02:59]}
{[%emt 00:00:06]} 30. Ka2 {[%clk 00:05:18]} {[%emt 00:00:16]} 1-0

[Event "21th Rochefort Chess Festival - Masters"]
[Site "Rochefort, France"]
[Date "2023.02.12"]
[Round "2.3"]
[White "Roselle, Tristan"]
[Black "Ghosh, Diptayan"]
[Result "0-1"]
[TimeControl "1h30 + [30'']"]
[WhiteElo "2241"]
[BlackElo "2553"]

1. e4 {[%clk 01:21:22]} {[%emt 00:09:37]} e5 {[%clk 01:26:16]} {[%emt
00:04:45]} 2. Nf3 {[%clk 01:16:44]} {[%emt 00:05:07]} Nc6 {[%clk 01:26:39]}
{[%emt 00:00:06]} 3. d4 {[%clk 01:16:43]} {[%emt 00:00:32]} exd4 {[%clk
01:26:51]} {[%emt 00:00:18]} 4. Bc4 {[%clk 01:17:02]} {[%emt 00:00:10]} d6
{[%clk 01:25:59]} {[%emt 00:01:23]} 5. Nxd4 {[%clk 01:16:32]} {[%emt 00:01:00]}
Nf6 {[%clk 01:26:17]} {[%emt 00:00:12]} 6. Nc3 {[%clk 01:16:40]} {[%emt
00:00:22]} Be7 {[%clk 01:26:42]} {[%emt 00:00:06]} 7. O-O {[%clk 01:16:31]}
{[%emt 00:00:38]} O-O {[%clk 01:27:08]} {[%emt 00:00:04]} 8. Bf4 {[%clk
01:16:21]} {[%emt 00:00:40]} Ne5 {[%clk 01:19:00]} {[%emt 00:08:38]} 9. Be2
{[%clk 01:16:20]} {[%emt 00:00:31]} Re8 {[%clk 01:17:45]} {[%emt 00:01:46]} 10.
Re1 {[%clk 01:15:16]} {[%emt 00:01:34]} Bf8 {[%clk 01:16:59]} {[%emt 00:01:17]}
11. Bg3 {[%clk 01:13:50]} {[%emt 00:01:55]} c6 {[%clk 01:08:59]} {[%emt
00:08:31]} 12. a4 {[%clk 01:09:14]} {[%emt 00:05:05]} a5 {[%clk 01:05:53]}
{[%emt 00:03:35]} 13. Qd2 {[%clk 01:07:09]} {[%emt 00:02:35]} Ng6 {[%clk
01:01:06]} {[%emt 00:05:18]} 14. Qd3 {[%clk 01:02:56]} {[%emt 00:04:42]} Qb6
{[%clk 00:59:16]} {[%emt 00:02:21]} 15. Kh1 {[%clk 00:59:21]} {[%emt 00:04:05]}
Qb4 {[%clk 00:47:10]} {[%emt 00:12:35]} 16. f4 {[%clk 00:53:35]} {[%emt
00:06:16]} Bg4 {[%clk 00:43:19]} {[%emt 00:04:22]} 17. Bxg4 {[%clk 00:49:15]}
{[%emt 00:04:50]} Nxg4 {[%clk 00:43:09]} {[%emt 00:00:41]} 18. h3 {[%clk
00:47:25]} {[%emt 00:02:20]} Nf6 {[%clk 00:38:08]} {[%emt 00:05:31]} 19. Bh2
{[%clk 00:45:03]} {[%emt 00:02:51]} Rad8 {[%clk 00:38:14]} {[%emt 00:00:24]} 20.
Rad1 {[%clk 00:41:32]} {[%emt 00:04:01]} Ne5 {[%clk 00:33:42]} {[%emt
00:05:03]} 21. fxe5 {[%clk 00:35:15]} {[%emt 00:06:47]} dxe5 {[%clk 00:34:08]}
{[%emt 00:00:05]} 22. Nxc6 {[%clk 00:34:22]} {[%emt 00:01:23]} Rxd3 {[%clk
00:33:44]} {[%emt 00:00:54]} 23. Nxb4 {[%clk 00:34:45]} {[%emt 00:00:07]} Rxd1
{[%clk 00:34:11]} {[%emt 00:00:03]} 24. Nxd1 {[%clk 00:34:37]} {[%emt
00:00:38]} Bxb4 {[%clk 00:29:59]} {[%emt 00:04:42]} 25. Re2 {[%clk 00:32:39]}
{[%emt 00:02:28]} Bc5 {[%clk 00:27:04]} {[%emt 00:03:25]} 26. Bg1 {[%clk
00:29:50]} {[%emt 00:03:19]} Nh5 {[%clk 00:24:36]} {[%emt 00:02:59]} 27. Kh2
{[%clk 00:28:11]} {[%emt 00:02:09]} Bxg1+ {[%clk 00:22:39]} {[%emt 00:02:28]}
28. Kxg1 {[%clk 00:28:32]} {[%emt 00:00:08]} Rd8 {[%clk 00:23:06]} {[%emt
00:00:04]} 29. Nc3 {[%clk 00:27:15]} {[%emt 00:01:46]} Nf4 {[%clk 00:22:07]}
{[%emt 00:01:29]} 30. Rf2 {[%clk 00:27:10]} {[%emt 00:00:36]} Rd4 {[%clk
00:22:01]} {[%emt 00:00:36]} 31. Kf1 {[%clk 00:27:09]} {[%emt 00:00:30]} h5
{[%clk 00:19:06]} {[%emt 00:03:26]} 32. h4 {[%clk 00:25:12]} {[%emt 00:02:26]}
f6 {[%clk 00:19:14]} {[%emt 00:00:23]} 33. Ke1 {[%clk 00:24:47]} {[%emt
00:00:55]} Kf7 {[%clk 00:19:27]} {[%emt 00:00:18]} 34. g3 {[%clk 00:24:24]}
{[%emt 00:00:53]} Ne6 {[%clk 00:19:48]} {[%emt 00:00:08]} 35. Rd2 {[%clk
00:21:38]} {[%emt 00:03:16]} g5 {[%clk 00:17:17]} {[%emt 00:03:02]} 36. Rxd4
{[%clk 00:20:04]} {[%emt 00:02:04]} Nxd4 {[%clk 00:16:45]} {[%emt 00:01:02]} 37.
hxg5 {[%clk 00:16:06]} {[%emt 00:04:27]} fxg5 {[%clk 00:17:09]} {[%emt
00:00:06]} 38. Kd2 {[%clk 00:15:28]} {[%emt 00:01:08]} h4 {[%clk 00:14:10]}
{[%emt 00:03:29]} 39. gxh4 {[%clk 00:14:37]} {[%emt 00:01:21]} gxh4 {[%clk
00:14:34]} {[%emt 00:00:06]} 40. Ke3 {[%clk 00:13:00]} {[%emt 00:02:06]} Ke6
{[%clk 00:05:56]} {[%emt 00:09:09]} 41. Nd5 {[%clk 00:09:04]} {[%emt 00:04:26]}
Nxc2+ {[%clk 00:01:01]} {[%emt 00:05:24]} 42. Kf3 {[%clk 00:09:09]} {[%emt
00:00:25]} Ne1+ {[%clk 00:01:01]} {[%emt 00:00:30]} 43. Kg4 {[%clk 00:07:07]}
{[%emt 00:02:32]} Nd3 {[%clk 00:00:38]} {[%emt 00:00:53]} 44. Kxh4 {[%clk
00:06:25]} {[%emt 00:01:12]} Nxb2 {[%clk 00:01:03]} {[%emt 00:00:05]} 45. Nb6
{[%clk 00:05:57]} {[%emt 00:00:58]} Kd6 {[%clk 00:28:16]} {[%emt 00:03:17]} 46.
Kg5 {[%clk 00:35:54]} {[%emt 00:00:34]} Kc6 {[%clk 00:25:05]} {[%emt 00:03:41]}
47. Nd5 {[%clk 00:36:17]} {[%emt 00:00:07]} Nxa4 {[%clk 00:25:04]} {[%emt
00:00:31]} 48. Kf6 {[%clk 00:36:35]} {[%emt 00:00:11]} Nb6 {[%clk 00:18:33]}
{[%emt 00:07:01]} 49. Ke6 {[%clk 00:34:24]} {[%emt 00:02:41]} Nc4 {[%clk
00:18:16]} {[%emt 00:00:49]} 0-1

[Event "21th Rochefort Chess Festival - Masters"]
[Site "Rochefort, France"]
[Date "2023.02.12"]
[Round "2.4"]
[White "Nikolov, Momchil"]
[Black "Durand-Le Ludec, Brendan-Budok"]
[Result "1/2-1/2"]
[TimeControl "1h30 + [30'']"]
[WhiteElo "2480"]
[BlackElo "2247"]

1. d4 {[%clk 01:29:11]} {[%emt 00:01:48]} Nf6 {[%clk 01:30:45]} {[%emt
00:00:13]} 2. c4 {[%clk 01:29:20]} {[%emt 00:00:23]} c5 {[%clk 01:31:07]}
{[%emt 00:00:08]} 3. d5 {[%clk 01:29:42]} {[%emt 00:00:09]} b5 {[%clk
01:30:56]} {[%emt 00:00:40]} 4. cxb5 {[%clk 01:30:01]} {[%emt 00:00:11]} a6
{[%clk 01:31:20]} {[%emt 00:00:07]} 5. bxa6 {[%clk 01:30:25]} {[%emt 00:00:06]}
g6 {[%clk 01:31:45]} {[%emt 00:00:05]} 6. Nc3 {[%clk 01:30:47]} {[%emt
00:00:08]} Bg7 {[%clk 01:31:21]} {[%emt 00:00:54]} 7. Nf3 {[%clk 01:31:00]}
{[%emt 00:00:16]} O-O {[%clk 01:31:28]} {[%emt 00:00:24]} 8. e4 {[%clk
01:31:23]} {[%emt 00:00:06]} Qa5 {[%clk 01:31:45]} {[%emt 00:00:14]} 9. Nd2
{[%clk 01:31:42]} {[%emt 00:00:10]} Bxa6 {[%clk 01:29:19]} {[%emt 00:02:57]} 10.
Bxa6 {[%clk 01:31:58]} {[%emt 00:00:14]} Qxa6 {[%clk 01:29:38]} {[%emt
00:00:11]} 11. a4 {[%clk 01:32:10]} {[%emt 00:00:17]} e6 {[%clk 01:25:18]}
{[%emt 00:04:51]} 12. Nb5 {[%clk 01:32:16]} {[%emt 00:00:23]} exd5 {[%clk
01:21:19]} {[%emt 00:04:30]} 13. Nc7 {[%clk 01:32:28]} {[%emt 00:00:17]} Qb7
{[%clk 01:21:35]} {[%emt 00:00:14]} 14. Nxa8 {[%clk 01:32:48]} {[%emt
00:00:11]} dxe4 {[%clk 01:21:15]} {[%emt 00:00:51]} 15. a5 {[%clk 01:32:50]}
{[%emt 00:00:27]} Qxa8 {[%clk 01:20:08]} {[%emt 00:01:37]} 16. Nc4 {[%clk
01:32:26]} {[%emt 00:00:53]} Qa6 {[%clk 01:07:07]} {[%emt 00:13:32]} 17. Qe2
{[%clk 01:28:13]} {[%emt 00:04:42]} d5 {[%clk 01:00:41]} {[%emt 00:06:57]} 18.
Nb6 {[%clk 01:28:29]} {[%emt 00:00:14]} c4 {[%clk 00:59:48]} {[%emt 00:01:24]}
19. O-O {[%clk 01:27:50]} {[%emt 00:01:07]} Nbd7 {[%clk 00:49:32]} {[%emt
00:10:47]} 20. Be3 {[%clk 01:08:05]} {[%emt 00:20:14]} Qb5 {[%clk 00:42:10]}
{[%emt 00:07:53]} 21. Nxd7 {[%clk 00:44:08]} {[%emt 00:24:27]} Nxd7 {[%clk
00:41:28]} {[%emt 00:01:12]} 22. Rfd1 {[%clk 00:40:26]} {[%emt 00:04:11]} Ne5
{[%clk 00:31:26]} {[%emt 00:10:33]} 23. b3 {[%clk 00:39:17]} {[%emt 00:01:39]}
Nd3 {[%clk 00:25:19]} {[%emt 00:06:37]} 24. bxc4 {[%clk 00:39:30]} {[%emt
00:00:17]} dxc4 {[%clk 00:19:36]} {[%emt 00:06:14]} 25. Ra2 {[%clk 00:38:59]}
{[%emt 00:01:00]} Ra8 {[%clk 00:18:10]} {[%emt 00:01:56]} 26. Bb6 {[%clk
00:36:28]} {[%emt 00:03:01]} f5 {[%clk 00:18:02]} {[%emt 00:00:38]} 27. Qc2
{[%clk 00:30:02]} {[%emt 00:06:55]} c3 {[%clk 00:13:57]} {[%emt 00:04:36]} 28.
Rb1 {[%clk 00:27:29]} {[%emt 00:03:02]} Nb2 {[%clk 00:13:00]} {[%emt 00:01:28]}
29. g3 {[%clk 00:11:09]} {[%emt 00:16:49]} Qd3 {[%clk 00:10:01]} {[%emt
00:03:29]} 30. Qb3+ {[%clk 00:09:56]} {[%emt 00:01:43]} Kh8 {[%clk 00:09:59]}
{[%emt 00:00:32]} 31. Rc1 {[%clk 00:09:36]} {[%emt 00:00:49]} f4 {[%clk
00:05:03]} {[%emt 00:05:27]} 32. a6 {[%clk 00:04:39]} {[%emt 00:05:27]} e3
{[%clk 00:04:03]} {[%emt 00:01:30]} 33. fxe3 {[%clk 00:03:27]} {[%emt
00:01:42]} fxe3 {[%clk 00:03:39]} {[%emt 00:00:53]} 34. Qe6 {[%clk 00:03:01]}
{[%emt 00:00:56]} Bd4 {[%clk 00:00:42]} {[%emt 00:03:28]} 35. Qd5 {[%clk
00:01:38]} {[%emt 00:01:52]} Bxb6 {[%clk 00:01:04]} {[%emt 00:00:09]} 36. Qxa8+
{[%clk 00:02:06]} {[%emt 00:00:02]} Kg7 {[%clk 00:00:37]} {[%emt 00:00:57]} 37.
Qb7+ {[%clk 00:01:52]} {[%emt 00:00:43]} Kh6 {[%clk 00:01:06]} {[%emt
00:00:01]} 38. Qxb6 {[%clk 00:01:46]} {[%emt 00:00:37]} Qd2 {[%clk 00:00:47]}
{[%emt 00:00:49]} 39. Rf1 {[%clk 00:01:36]} {[%emt 00:00:38]} e2 {[%clk
00:01:00]} {[%emt 00:00:18]} 40. Raa1 {[%clk 00:00:42]} {[%emt 00:01:24]} Nd1
{[%clk 00:00:31]} {[%emt 00:00:59]} 41. a7 {[%clk 00:12:14]} {[%emt 00:18:58]}
Qd3 {[%clk 00:12:02]} {[%emt 00:18:59]} 42. Re1 {[%clk 00:02:25]} {[%emt
00:10:20]} Qd2 {[%clk 00:12:06]} {[%emt 00:00:26]} 43. Qf2 {[%clk 00:01:44]}
{[%emt 00:01:11]} Nxf2 {[%clk 00:10:46]} {[%emt 00:01:50]} 44. Kxf2 {[%clk
00:01:48]} {[%emt 00:00:26]} Qd4+ {[%clk 00:10:32]} {[%emt 00:00:45]} 45. Kxe2
{[%clk 00:02:04]} {[%emt 00:00:14]} Qe4+ {[%clk 00:05:57]} {[%emt 00:05:05]} 46.
Kf2 {[%clk 00:02:02]} {[%emt 00:00:31]} Qf5+ {[%clk 00:04:14]} {[%emt
00:02:14]} 47. Ke3 {[%clk 00:01:27]} {[%emt 00:01:05]} Qe5+ {[%clk 00:04:17]}
{[%emt 00:00:27]} 48. Kf3 {[%clk 00:01:21]} {[%emt 00:00:36]} Qf5+ {[%clk
00:04:37]} {[%emt 00:00:11]} 49. Kg2 {[%clk 00:00:55]} {[%emt 00:00:55]} Qd5+
{[%clk 00:04:54]} {[%emt 00:00:13]} 50. Kg1 {[%clk 00:00:49]} {[%emt 00:00:36]}
Qc5+ {[%clk 00:04:21]} {[%emt 00:01:03]} 51. Kf1 {[%clk 00:01:04]} {[%emt
00:00:15]} Qf5+ {[%clk 00:04:37]} {[%emt 00:00:14]} 52. Ke2 {[%clk 00:00:53]}
{[%emt 00:00:41]} Qe4+ {[%clk 00:04:56]} {[%emt 00:00:11]} 53. Kf2 {[%clk
00:01:21]} {[%emt 00:00:02]} Qf5+ {[%clk 00:05:19]} {[%emt 00:00:08]} 54. Ke3
{[%clk 00:01:48]} {[%emt 00:00:03]} Qe5+ {[%clk 00:05:37]} {[%emt 00:00:12]} 55.
Kd3 {[%clk 00:02:16]} {[%emt 00:00:02]} Qd5+ {[%clk 00:04:51]} {[%emt
00:01:15]} 56. Kc2 {[%clk 00:02:18]} {[%emt 00:00:28]} Qf5+ {[%clk 00:05:01]}
{[%emt 00:00:20]} 57. Kxc3 {[%clk 00:01:07]} {[%emt 00:01:41]} Qc5+ {[%clk
00:05:18]} {[%emt 00:00:14]} 58. Kd3 {[%clk 00:01:29]} {[%emt 00:00:08]} Qd5+
{[%clk 00:05:29]} {[%emt 00:00:19]} 59. Ke2 {[%clk 00:01:29]} {[%emt 00:00:30]}
Qe4+ {[%clk 00:05:38]} {[%emt 00:00:20]} 60. Kf1 {[%clk 00:00:49]} {[%emt
00:01:10]} Qf5+ {[%clk 00:05:49]} {[%emt 00:00:20]} 61. Kg1 {[%emt 00:00:49]}
1/2-1/2



[ePGN "0.1;DGT LiveChess/2.2.5"]

[Event "21th Rochefort Chess Festival - Masters"]
[Site "Rochefort, France"]
[Date "2023.02.12"]
[Round "3.1"]
[White "Sasikiran, Krishnan"]
[Black "Ternault, Mathieu"]
[Result "1/2-1/2"]
[TimeControl "1h30 + [30'']"]
[WhiteElo "2619"]
[BlackElo "2361"]

1. d4 {[%clk 01:29:41]} {[%emt 00:01:17]} e6 {[%clk 01:30:20]} {[%emt
00:00:41]} 2. c4 {[%clk 01:29:51]} {[%emt 00:00:20]} b6 {[%clk 01:30:32]}
{[%emt 00:00:18]} 3. e4 {[%clk 01:28:46]} {[%emt 00:01:35]} Bb4+ {[%clk
01:30:26]} {[%emt 00:00:36]} 4. Bd2 {[%clk 01:25:57]} {[%emt 00:03:19]} Bxd2+
{[%clk 01:30:09]} {[%emt 00:00:47]} 5. Nxd2 {[%clk 01:20:27]} {[%emt 00:06:00]}
d5 {[%clk 01:30:11]} {[%emt 00:00:28]} 6. Ngf3 {[%clk 01:18:20]} {[%emt
00:02:36]} dxe4 {[%clk 01:24:21]} {[%emt 00:06:21]} 7. Nxe4 {[%clk 01:17:27]}
{[%emt 00:01:22]} Bb7 {[%clk 01:24:23]} {[%emt 00:00:28]} 8. Bd3 {[%clk
01:15:50]} {[%emt 00:02:07]} Nf6 {[%clk 01:19:52]} {[%emt 00:05:01]} 9. Nc3
{[%clk 01:01:58]} {[%emt 00:14:22]} O-O {[%clk 01:13:41]} {[%emt 00:06:41]} 10.
O-O {[%clk 00:58:10]} {[%emt 00:04:19]} c5 {[%clk 01:09:48]} {[%emt 00:04:23]}
11. dxc5 {[%clk 00:56:06]} {[%emt 00:02:34]} bxc5 {[%clk 01:03:53]} {[%emt
00:06:25]} 12. Qe2 {[%clk 00:54:03]} {[%emt 00:02:32]} Nbd7 {[%clk 01:00:41]}
{[%emt 00:03:41]} 13. Rad1 {[%clk 00:52:53]} {[%emt 00:01:40]} Qb6 {[%clk
00:50:48]} {[%emt 00:10:23]} 14. Ng5 {[%clk 00:47:22]} {[%emt 00:06:01]} h6
{[%clk 00:40:07]} {[%emt 00:11:12]} 15. Nge4 {[%clk 00:43:01]} {[%emt
00:04:51]} Bxe4 {[%clk 00:36:26]} {[%emt 00:04:11]} 16. Bxe4 {[%clk 00:42:09]}
{[%emt 00:01:21]} Rad8 {[%clk 00:32:27]} {[%emt 00:04:29]} 17. Bf3 {[%clk
00:38:18]} {[%emt 00:04:22]} Nb8 {[%clk 00:29:37]} {[%emt 00:03:20]} 18. b3
{[%clk 00:28:50]} {[%emt 00:09:58]} Rxd1 {[%clk 00:25:58]} {[%emt 00:04:09]} 19.
Rxd1 {[%clk 00:28:06]} {[%emt 00:01:14]} Rd8 {[%clk 00:26:03]} {[%emt
00:00:24]} 20. Na4 {[%clk 00:25:29]} {[%emt 00:03:06]} Rxd1+ {[%clk 00:25:33]}
{[%emt 00:01:01]} 21. Qxd1 {[%clk 00:25:49]} {[%emt 00:00:10]} Qc7 {[%clk
00:24:38]} {[%emt 00:01:25]} 22. g3 {[%clk 00:23:29]} {[%emt 00:02:50]} Nbd7
{[%clk 00:23:36]} {[%emt 00:01:32]} 23. Qd2 {[%clk 00:21:58]} {[%emt 00:02:01]}
Kf8 {[%clk 00:21:01]} {[%emt 00:03:06]} 24. Kg2 {[%clk 00:17:17]} {[%emt
00:05:10]} Ke7 {[%clk 00:19:27]} {[%emt 00:02:04]} 25. Qe3 {[%clk 00:16:39]}
{[%emt 00:01:08]} Qd6 {[%clk 00:15:56]} {[%emt 00:04:00]} 26. h3 {[%clk
00:13:03]} {[%emt 00:04:07]} g5 {[%clk 00:12:56]} {[%emt 00:03:30]} 27. a3
{[%clk 00:12:15]} {[%emt 00:01:18]} Qc7 {[%clk 00:10:04]} {[%emt 00:03:22]} 28.
Kf1 {[%clk 00:11:34]} {[%emt 00:01:11]} Qd6 {[%clk 00:09:26]} {[%emt 00:01:09]}
29. Ke2 {[%clk 00:09:07]} {[%emt 00:02:56]} Qc7 {[%clk 00:09:17]} {[%emt
00:00:39]} 30. Kd1 {[%clk 00:07:23]} {[%emt 00:02:14]} Qd6+ {[%clk 00:08:56]}
{[%emt 00:00:52]} 31. Ke2 {[%clk 00:05:32]} {[%emt 00:02:20]} Qc7 {[%clk
00:09:24]} {[%emt 00:00:02]} 32. Kd1 {[%clk 00:05:36]} {[%emt 00:00:26]} Qd6+
{[%clk 00:09:53]} {[%emt 00:00:02]} 1/2-1/2

[Event "21th Rochefort Chess Festival - Masters"]
[Site "Rochefort, France"]
[Date "2023.02.12"]
[Round "3.3"]
[White "Ghosh, Diptayan"]
[Black "Hutois, Mickael"]
[Result "1-0"]
[TimeControl "1h30 + [30'']"]
[WhiteElo "2553"]
[BlackElo "2285"]

1. Nf3 {[%clk 01:15:46]} {[%emt 00:15:12]} Nf6 {[%clk 01:30:54]} {[%emt
00:00:06]} 2. c4 {[%clk 01:16:08]} {[%emt 00:00:09]} e6 {[%clk 01:30:42]}
{[%emt 00:00:42]} 3. g3 {[%clk 01:16:32]} {[%emt 00:00:06]} b6 {[%clk
01:28:40]} {[%emt 00:02:32]} 4. Bg2 {[%clk 01:16:45]} {[%emt 00:00:16]} Bb7
{[%clk 01:29:05]} {[%emt 00:00:05]} 5. O-O {[%clk 01:17:10]} {[%emt 00:00:05]}
c5 {[%clk 01:29:16]} {[%emt 00:00:19]} 6. Nc3 {[%clk 01:16:57]} {[%emt
00:00:43]} Nc6 {[%clk 01:29:00]} {[%emt 00:00:46]} 7. e3 {[%clk 01:13:06]}
{[%emt 00:04:21]} Be7 {[%clk 01:24:42]} {[%emt 00:04:48]} 8. d4 {[%clk
01:11:35]} {[%emt 00:02:02]} d5 {[%clk 01:23:05]} {[%emt 00:02:07]} 9. cxd5
{[%clk 01:11:40]} {[%emt 00:00:25]} exd5 {[%clk 01:23:14]} {[%emt 00:00:20]} 10.
b3 {[%clk 01:11:55]} {[%emt 00:00:15]} O-O {[%clk 01:13:42]} {[%emt 00:10:02]}
11. Bb2 {[%clk 01:12:21]} {[%emt 00:00:04]} Qd7 {[%clk 01:12:01]} {[%emt
00:02:12]} 12. Ne5 {[%clk 00:57:40]} {[%emt 00:15:11]} Qe6 {[%clk 01:08:36]}
{[%emt 00:03:54]} 13. Ne2 {[%clk 00:53:31]} {[%emt 00:04:39]} Rfd8 {[%clk
01:03:07]} {[%emt 00:05:59]} 14. Nf4 {[%clk 00:51:29]} {[%emt 00:02:32]} Qd6
{[%clk 01:02:17]} {[%emt 00:01:20]} 15. Rc1 {[%clk 00:47:13]} {[%emt 00:04:47]}
Rac8 {[%clk 00:58:54]} {[%emt 00:03:52]} 16. Re1 {[%clk 00:44:19]} {[%emt
00:03:23]} Ne4 {[%clk 00:50:25]} {[%emt 00:08:59]} 17. dxc5 {[%clk 00:41:43]}
{[%emt 00:03:07]} bxc5 {[%clk 00:50:09]} {[%emt 00:00:46]} 18. Qxd5 {[%clk
00:36:52]} {[%emt 00:05:21]} Qxd5 {[%clk 00:34:36]} {[%emt 00:16:03]} 19. Nxd5
{[%clk 00:37:12]} {[%emt 00:00:10]} Rxd5 {[%clk 00:35:01]} {[%emt 00:00:05]} 20.
Bxe4 {[%clk 00:36:10]} {[%emt 00:01:32]} Rd2 {[%clk 00:34:49]} {[%emt
00:00:42]} 21. Nc4 {[%clk 00:36:18]} {[%emt 00:00:22]} Rdd8 {[%clk 00:33:55]}
{[%emt 00:01:25]} 22. Red1 {[%clk 00:35:44]} {[%emt 00:01:03]} Ba6 {[%clk
00:32:27]} {[%emt 00:01:59]} 23. Rxd8+ {[%clk 00:33:04]} {[%emt 00:03:10]} Nxd8
{[%clk 00:31:43]} {[%emt 00:01:13]} 24. Rd1 {[%clk 00:33:18]} {[%emt 00:00:16]}
Ne6 {[%clk 00:31:59]} {[%emt 00:00:14]} 25. Rd7 {[%clk 00:32:49]} {[%emt
00:00:59]} Rc7 {[%clk 00:32:23]} {[%emt 00:00:07]} 26. Rxc7 {[%clk 00:33:15]}
{[%emt 00:00:04]} Nxc7 {[%clk 00:32:49]} {[%emt 00:00:04]} 27. Be5 {[%clk
00:31:32]} {[%emt 00:02:12]} 1-0